bitfinex/quotes_SOLUSD_20241008
["timestamp","ask_amount","ask_price","bid_price","bid_amount"]
[1728368134247,1.74865592,142.98,142.92,17.4911]
[1728368134429,1.74875496,143.0,142.93,8.39530397]
[1728368134745,6.9941,142.98,142.93,6.9963]
[1728368134948,6.9935,142.99,142.95,6.9953]
[1728368135245,1.74875496,143.0,142.95,6.9953]
[1728368135438,17.19665436,143.01,142.96,8.39374348]
[1728368135641,24.18915436,143.01,142.96,8.39374348]
[1728368136019,24.18915436,143.01,142.96,18.88544348]
[1728368136020,15.4481,143.01,142.96,18.88544348]
[1728368136227,1.74838997,143.04,142.99,6.9933]
[1728368136442,1.74838997,143.04,142.99,8.3918323]
[1728368136443,8.73948997,143.04,142.99,8.3918323]
[1728368137146,8.73948997,143.04,143.0,6.9929]
[1728368137322,8.73948997,143.04,143.01,6.9921]
[1728368137323,1.74838997,143.04,143.01,6.9921]
[1728368137524,1.74838997,143.04,143.0,24.4742]
[1728368139450,8.73948997,143.04,143.0,24.4742]
[1728368140253,1.74838997,143.04,142.96,41.5814]
[1728368140552,1.74838997,143.04,142.97,37.4856]
[1728368142157,6.992,143.02,142.98,6.9938]
[1728368142455,8.74064671,143.01,142.97,44.48]
[1728368142651,6.9924,143.02,142.97,44.48]
[1728368142955,6.993,143.0,142.97,37.4856]
[1728368143323,6.9926,143.01,142.97,37.4856]
[1728368143555,8.74176943,143.0,142.96,20.0]
[1728368143727,1.74849825,142.99,142.96,20.0]
[1728368144153,32.9254,143.05,142.97,6.9944]
[1728368144154,6.9926,143.01,142.97,6.9944]
[1728368144455,1.74835422,143.0,142.97,6.9944]
[1728368144628,1.74835422,143.0,142.96,24.4818]
[1728368144930,6.9926,143.01,142.97,8.39299629]
[1728368145134,6.9921,143.02,142.97,8.39299629]
[1728368145453,6.9916,143.03,142.97,1.39869629]
[1728368145636,6.9916,143.03,142.99,6.9934]
[1728368146037,6.9927,143.01,142.97,6.9944]
[1728368146448,6.9927,143.01,142.97,8.39302722]
[1728368149254,6.9921,143.02,142.97,8.39302722]
[1728368150363,1.74828167,143.04,142.97,1.39862722]
[1728368150687,6.9916,143.03,142.98,6.9936]
[1728368150882,6.9916,143.03,142.99,1.39853398]
[1728368151038,1.74828167,143.04,142.99,1.39853398]
[1728368151233,31.48283367,143.05,143.01,6.9921]
[1728368151434,15.4481,143.05,143.02,6.9919]
[1728368151659,15.4481,143.05,143.03,1.39826138]
[1728368151859,15.4481,143.05,143.03,8.38976138]
[1728368152043,15.4481,143.05,143.03,6.9915]
[1728368152238,15.4481,143.05,143.04,8.38913324]
[1728368152437,8.73692673,143.08,143.05,6.9904]
[1728368152438,1.74754597,143.08,143.05,6.9904]
[1728368152750,17.03774082,143.09,143.05,6.9904]
[1728368152951,24.02644082,143.09,143.04,24.4678]
[1728368153160,6.9897,143.07,143.03,6.9914]
[1728368153340,8.73701131,143.08,143.02,20.0]
[1728368153654,1.74761131,143.08,143.01,17.4807]
[1728368153862,6.9909,143.05,143.01,24.4732]
[1728368154059,6.9909,143.05,143.01,17.4807]
[1728368154446,1.7478307,143.04,142.98,17.4844]
[1728368154745,6.9923,143.02,142.98,17.4844]
[1728368155069,6.9923,143.02,142.98,24.4782]
[1728368155647,8.74063913,143.01,142.98,17.4844]
[1728368155947,8.74051834,143.02,142.98,17.4844]
[1728368156154,24.6068463,143.03,142.99,1.39851704]
[1728368156536,24.6068463,143.03,142.99,8.39191704]
[1728368157368,15.8671,143.03,142.99,1.39851704]
[1728368157556,15.8671,143.03,143.0,6.993]
[1728368158740,15.8671,143.03,143.01,8.39070466]
[1728368159139,6.9906,143.05,143.01,8.39070466]
[1728368159548,1.74800582,143.07,143.01,8.39070466]
[1728368159747,6.9902,143.06,143.01,6.9923]
[1728368160257,1.74800582,143.07,143.0,17.4819]
[1728368160461,8.73770582,143.07,143.02,6.9916]
[1728368160854,8.73770582,143.07,143.03,1.39811105]
[1728368161350,8.73770582,143.07,143.02,6.9916]
[1728368162569,1.74800582,143.07,143.01,6.9924]
[1728368162751,6.9907,143.05,143.0,24.4747]
[1728368162953,6.9912,143.04,143.0,24.4747]
[1728368163165,6.9906,143.05,143.0,24.4747]
[1728368163353,6.9906,143.05,143.01,6.9923]
[1728368163667,6.9901,143.06,143.01,6.9923]
[1728368163849,29.85726509,143.08,143.04,6.991]
[1728368164049,16.4841,143.08,143.05,1.39796945]
[1728368164360,16.4841,143.08,143.03,20.0]
[1728368164563,16.4841,143.08,143.06,6.9897]
[1728368164768,16.4841,143.08,143.06,8.38756212]
[1728368165352,7.92830862,143.12,143.06,8.38756212]
[1728368165353,6.9877,143.11,143.06,8.38756212]
[1728368165689,6.9877,143.11,143.07,1.39774493]
[1728368165851,6.9882,143.1,143.07,1.39774493]
[1728368166152,6.9882,143.1,143.06,6.9897]
[1728368167078,15.8539,143.12,143.07,20.0]
[1728368167251,15.8539,143.12,143.08,1.3974213]
[1728368167447,15.8539,143.12,143.1,6.988]
[1728368167677,6.9858,143.15,143.1,6.988]
[1728368167678,22.8397,143.15,143.1,8.3854016]
[1728368168253,6.9863,143.14,143.09,20.0]
[1728368168779,6.9863,143.14,143.09,26.9885]
[1728368169375,17.60048954,143.15,143.09,26.9885]
[1728368169572,17.60048954,143.15,143.08,17.4719]
[1728368169573,6.9866,143.13,143.08,17.4719]
[1728368169784,6.9877,143.11,143.06,6.9899]
[1728368170075,0.12549,143.13,143.05,17.4758]
[1728368170263,6.9891,143.08,143.04,6.9909]
[1728368170903,20.25098,143.13,143.02,52.4388]
[1728368170904,15.0982,143.09,143.02,17.4794]
[1728368171050,6.9896,143.07,143.03,1.39803396]
[1728368171250,6.9891,143.08,143.04,1.39803365]
[1728368171452,6.9891,143.08,143.04,8.38893365]
[1728368171671,6.9891,143.08,143.02,17.4794]
[1728368171882,22.0869,143.09,143.04,6.9906]
[1728368172651,15.0982,143.09,143.05,1.39781949]
[1728368172873,15.0982,143.09,143.06,6.99]
[1728368173250,15.0982,143.09,143.05,26.9904]
[1728368173451,15.0982,143.09,143.06,1.39775141]
[1728368174071,6.9891,143.08,143.04,17.4768]
[1728368174274,6.9899,143.07,143.02,26.9919]
[1728368174462,8.73661571,143.08,143.03,8.3892058]
[1728368174777,8.73661571,143.08,143.03,6.9912]
[1728368175076,6.9902,143.06,143.02,26.9919]
[1728368175283,1.74741571,143.08,143.02,20.0]
[1728368175468,6.9896,143.07,143.03,6.9914]
[1728368175664,16.84574318,143.09,143.03,6.9914]
[1728368175870,22.0869,143.09,143.05,6.9904]
[1728368176086,15.0982,143.09,143.06,1.39780777]
[1728368176291,22.0868,143.09,143.05,6.9904]
[1728368176578,6.9896,143.07,143.03,17.4781]
[1728368176781,6.9896,143.07,143.04,1.39793035]
[1728368177755,15.0982,143.09,143.06,6.99]
[1728368177955,15.0982,143.09,143.05,17.4758]
[1728368178155,15.0982,143.09,143.06,1.39778206]
[1728368178886,22.0868,143.09,143.06,1.39778206]
[1728368179195,15.0982,143.09,143.02,17.4796]
[1728368179785,6.9891,143.08,143.04,6.9909]
[1728368179980,6.9891,143.08,142.99,84.9671]
[1728368179981,15.0982,143.09,143.05,6.9904]
[1728368180182,15.0982,143.09,143.01,6.9924]
[1728368180183,16.8455002,143.09,143.01,6.9924]
[1728368180375,6.9897,143.07,143.02,6.9916]
[1728368181185,15.0982,143.09,143.02,17.4795]
[1728368181485,6.9892,143.08,143.04,6.991]
[1728368181680,6.9892,143.08,143.02,17.4795]
[1728368181867,6.9892,143.08,143.03,8.38940745]
[1728368182463,6.9897,143.07,143.03,8.38940745]
[1728368184306,6.9897,143.07,143.03,6.9914]
[1728368186066,6.9897,143.07,143.02,24.4714]
[1728368186685,15.0982,143.09,143.02,17.4795]
[1728368186990,6.4459,143.07,143.02,17.4795]
[1728368187288,8.73787609,143.06,143.02,17.4795]
[1728368187862,8.73787609,143.06,143.02,24.4714]
[1728368188066,6.4459,143.07,143.03,1.39814065]
[1728368188366,16.84564042,143.09,143.03,1.39814065]
[1728368188586,15.0982,143.09,143.05,6.9901]
[1728368188798,15.0982,143.09,143.06,8.38778526]
[1728368189269,15.0982,143.09,143.05,6.9904]
[1728368189470,15.0982,143.09,143.06,1.39780752]
[1728368189781,15.0982,143.09,143.05,6.9904]
[1728368190274,16.84546565,143.09,143.04,24.4677]
[1728368190472,6.9891,143.08,143.04,24.4677]
[1728368191184,15.0982,143.09,143.05,8.388444]
[1728368191803,15.0982,143.09,143.05,21.397944]
[1728368191964,15.0982,143.09,143.06,17.4748]
[1728368192290,22.773,143.13,143.08,24.4611]
[1728368192505,22.773,143.13,143.09,6.9883]
[1728368193385,15.7863,143.13,143.11,6.9875]
[1728368193563,15.7863,143.13,143.1,1.39744872]
[1728368193764,15.7863,143.13,143.09,43.776884]
[1728368193964,15.7863,143.13,143.09,20.0]
[1728368194165,15.7863,143.13,143.1,1.3974612]
[1728368194595,15.7863,143.13,143.1,8.3851612]
[1728368194800,8.73200627,143.16,143.1,18.8672612]
[1728368194975,16.3207,143.17,143.13,6.9865]
[1728368195174,16.3207,143.17,143.14,1.39702078]
[1728368195765,16.3207,143.17,143.16,6.9851]
[1728368195970,16.3207,143.17,143.16,8.38196549]
[1728368196397,16.3207,143.17,143.14,17.4646]
[1728368197390,16.3207,143.17,143.15,6.9855]
[1728368197599,16.3207,143.17,143.15,8.38243512]
[1728368197774,16.3207,143.17,143.16,6.9851]
[1728368197974,22.8829,143.21,143.16,6.9851]
[1728368198281,22.8829,143.21,143.17,1.3967386]
[1728368198789,6.9833,143.2,143.17,1.3967386]
[1728368199371,6.9833,143.2,143.14,17.4646]
[1728368199372,1.74592439,143.2,143.14,17.4646]
[1728368199576,1.74592439,143.2,143.13,20.0]
[1728368199779,6.9852,143.16,143.11,24.4556]
[1728368199984,1.74592439,143.2,143.11,24.4556]
[1728368200307,6.9857,143.15,143.1,6.9881]
[1728368200506,23.5179,143.15,143.1,6.9881]
[1728368201294,23.5179,143.15,143.11,1.39725714]
[1728368201795,16.5322,143.15,143.11,1.39725714]
[1728368202094,16.5322,143.15,143.12,17.4668]
[1728368202300,23.516,143.19,143.14,6.9858]
[1728368202469,23.516,143.19,143.15,1.39685132]
[1728368202981,16.5322,143.19,143.15,8.38205132]
[1728368203294,23.516,143.19,143.14,24.4506]
[1728368203890,16.5322,143.19,143.15,6.9855]
[1728368204112,16.5322,143.19,143.16,8.38174573]
[1728368204274,16.5322,143.19,143.16,6.985]
[1728368205603,16.6363,143.23,143.17,20.0]
[1728368205902,6.9823,143.22,143.18,8.38064958]
[1728368207905,6.9831,143.21,143.17,20.0]
[1728368208304,1.74575727,143.2,143.13,17.4659]
[1728368208509,6.9846,143.18,143.13,24.4524]
[1728368209522,1.74575727,143.2,143.14,21.39695693]
[1728368209810,6.9841,143.19,143.14,26.986]
[1728368210198,8.73052718,143.18,143.14,26.986]
[1728368210384,6.9844,143.18,143.14,20.0]
[1728368210591,6.9852,143.16,143.13,20.0]
[1728368210778,17.44500004,143.17,143.1,37.4697]
[1728368210779,6.9858,143.15,143.1,17.4697]
[1728368211090,17.44500004,143.17,143.1,17.4697]
[1728368211091,6.9862,143.14,143.1,24.4576]
[1728368211502,6.9858,143.15,143.1,24.4576]
[1728368212012,6.9862,143.14,143.1,24.4576]
[1728368212183,6.9862,143.14,143.11,20.0]
[1728368212381,6.9857,143.15,143.12,1.39725963]
[1728368214734,6.9857,143.15,143.11,26.9875]
[1728368218089,8.73179286,143.16,143.11,28.3846927]
[1728368218288,8.73179286,143.16,143.11,26.9875]
[1728368220430,6.9853,143.16,143.12,1.39718881]
[1728368220620,6.9853,143.16,143.12,8.38428881]
[1728368220926,15.6988,143.17,143.13,8.38357771]
[1728368221134,15.6988,143.17,143.14,6.9861]
[1728368221343,15.6988,143.17,143.15,1.39695181]
[1728368222130,7.2989753,143.21,143.15,20.0]
[1728368222131,14.2820753,143.21,143.15,20.0]
[1728368222308,7.2989753,143.21,143.16,1.39664417]
[1728368222509,1.74618976,143.22,143.16,1.39664417]
[1728368222835,1.74580084,143.23,143.16,1.39664417]
[1728368223022,25.21200084,143.24,143.18,20.0]
[1728368223226,23.4662,143.24,143.19,1.39644553]
[1728368223449,16.4845,143.24,143.21,6.9826]
[1728368223637,16.4845,143.24,143.22,1.39630512]
[1728368223838,16.4845,143.24,143.18,37.4601]
[1728368224138,8.72747261,143.23,143.18,44.4442]
[1728368224327,6.9823,143.22,143.18,44.4442]
[1728368224933,1.74537261,143.23,143.19,1.39652458]
[1728368225131,6.9819,143.23,143.19,1.39652458]
[1728368225318,18.2301548,143.24,143.19,1.39652458]
[1728368225319,16.4845,143.24,143.19,1.39652458]
[1728368225516,16.4845,143.24,143.21,6.9826]
[1728368225755,16.4845,143.24,143.22,1.39629702]
[1728368225916,6.9799,143.27,143.23,6.9817]
[1728368226364,6.9799,143.27,143.24,1.39610441]
[1728368226529,6.9799,143.27,143.22,6.9818]
[1728368226728,1.74513337,143.26,143.21,26.9827]
[1728368226920,6.9813,143.24,143.2,17.4574]
[1728368227345,8.72727376,143.23,143.19,6.9832]
[1728368227651,6.9813,143.24,143.19,6.9832]
[1728368229425,6.9808,143.25,143.2,8.37947671]
[1728368229764,6.9804,143.26,143.21,6.9823]
[1728368229961,8.72607677,143.25,143.21,6.9823]
[1728368230252,8.72663207,143.24,143.2,20.0]
[1728368230454,6.9813,143.24,143.2,20.0]
[1728368231559,6.9813,143.24,143.2,21.39641667]
[1728368231941,8.72732077,143.23,143.19,24.4418]
[1728368232252,0.12549,143.26,143.19,24.4418]
[1728368232253,1.87106086,143.26,143.19,17.4585]
[1728368232430,6.9823,143.22,143.19,17.4585]
[1728368233025,6.9818,143.23,143.19,25.83851179]
[1728368233259,0.12549,143.26,143.21,6.9823]
[1728368233260,8.72613259,143.26,143.21,6.9823]
[1728368233861,1.74553259,143.26,143.2,6.9831]
[1728368234370,1.74540885,143.27,143.2,6.9831]
[1728368234757,6.9809,143.25,143.2,6.9831]
[1728368234946,8.72665618,143.24,143.2,6.9831]
[1728368235146,1.7454684,143.27,143.2,6.9831]
[1728368235346,6.9813,143.24,143.2,6.9831]
[1728368235651,6.9813,143.24,143.19,24.442]
[1728368237481,6.9813,143.24,143.2,1.39638505]
[1728368237780,6.9813,143.24,143.19,24.442]
[1728368238271,6.9823,143.22,143.19,17.4585]
[1728368239771,6.9823,143.22,143.19,18.85501464]
[1728368239979,6.9809,143.25,143.21,6.9826]
[1728368240275,7.29495833,143.27,143.23,17.4541]
[1728368240469,15.4328,143.28,143.24,1.39600746]
[1728368240674,1.74506316,143.27,143.23,17.4541]
[1728368240978,8.72516316,143.27,143.23,17.4541]
[1728368241463,6.9804,143.26,143.22,6.9821]
[1728368241665,8.72598453,143.25,143.21,20.0]
[1728368241866,8.72695756,143.24,143.2,17.4573]
[1728368242359,6.9807,143.26,143.21,26.9826]
[1728368242587,1.74534463,143.25,143.21,20.0]
[1728368242881,6.9822,143.22,143.18,6.9841]
[1728368243086,1.74534463,143.25,143.15,6.0439]
[1728368243087,16.4519,143.24,143.15,6.0439]
[1728368243284,1.74592393,143.23,143.15,6.9852]
[1728368243482,6.9839,143.19,143.15,6.9852]
[1728368243656,6.9839,143.19,143.14,24.4506]
[1728368244692,6.9839,143.19,143.15,6.9856]
[1728368244868,6.9833,143.2,143.16,1.39683748]
[1728368245069,1.74605837,143.19,143.15,6.9856]
[1728368245483,6.9833,143.2,143.16,1.39684942]
[1728368245788,40.63918,143.24,143.15,20.0]
[1728368245789,8.72976362,143.19,143.15,20.0]
[1728368246091,6.9837,143.19,143.14,24.4507]
[1728368246275,6.9837,143.19,143.15,20.0]
[1728368246786,6.9847,143.17,143.14,17.4646]
[1728368246983,6.9843,143.18,143.14,17.4646]
[1728368247189,8.7309527,143.17,143.09,50.0]
[1728368247376,1.7462527,143.17,143.11,17.4688]
[1728368247690,0.25098,143.16,143.08,17.4722]
[1728368247902,6.9871,143.12,143.08,17.4722]
[1728368248192,0.12549,143.14,143.08,17.4722]
[1728368248362,1.74694516,143.14,143.08,17.4722]
[1728368248563,1.74670314,143.16,143.08,17.4722]
[1728368248902,1.74670314,143.16,143.09,6.9885]
[1728368249192,8.73190314,143.16,143.1,18.86670371]
[1728368249368,1.74670314,143.16,143.12,6.987]
[1728368249570,21.9828,143.18,143.13,6.9865]
[1728368249770,24.676936,143.18,143.14,1.3970688]
[1728368250169,24.676936,143.18,143.14,18.8614688]
[1728368250170,15.9461,143.18,143.14,18.8614688]
[1728368250469,8.73089264,143.17,143.12,6.987]
[1728368250697,8.73089264,143.17,143.13,26.9866]
[1728368250867,15.9461,143.18,143.14,6.9861]
[1728368251364,15.9461,143.18,143.15,8.38212258]
[1728368251562,15.9461,143.18,143.13,37.4659]
[1728368251781,17.6922654,143.18,143.13,17.4659]
[1728368252670,6.9852,143.16,143.12,20.0]
[1728368252900,1.74647165,143.15,143.11,20.0]
[1728368253062,1.74680361,143.17,143.11,1.39744289]
[1728368253267,1.74680361,143.17,143.1,24.4576]
[1728368253268,6.9862,143.14,143.1,24.4576]
[1728368253770,8.73345485,143.13,143.08,6.9886]
[1728368253982,1.74687892,143.12,143.08,6.9886]
[1728368254192,6.9862,143.14,143.09,6.9884]
[1728368254503,8.73296396,143.14,143.09,6.9884]
[1728368254817,8.73296396,143.14,143.08,8.38637371]
[1728368254818,8.73336396,143.14,143.08,8.38637371]
[1728368254964,6.9868,143.13,143.08,6.9889]
[1728368255590,15.8366,143.11,143.07,24.4629]
[1728368256809,17.58365549,143.11,143.07,24.4629]
[1728368257539,15.8366,143.11,143.07,24.4629]
[1728368258033,22.8242,143.11,143.07,17.4734]
[1728368258237,1.74709178,143.1,143.06,20.0]
[1728368258442,8.73519178,143.1,143.05,6.9904]
[1728368259912,8.73519178,143.1,143.06,20.0]
[1728368260319,1.74709178,143.1,143.05,6.9904]
[1728368260734,8.73529178,143.1,143.05,6.9904]
[1728368261419,1.74709178,143.1,143.06,6.99]
[1728368261623,15.8366,143.11,143.07,6.9894]
[1728368261624,22.8243,143.11,143.07,6.9894]
[1728368261825,1.74710204,143.1,143.07,6.9894]
[1728368262217,6.9889,143.09,143.04,24.4678]
[1728368262631,8.73653508,143.08,143.04,17.4769]
[1728368262837,6.9892,143.08,143.04,17.4769]
[1728368263752,6.9892,143.08,143.04,24.4679]
[1728368264164,1.74745579,143.07,143.04,17.4769]
[1728368264665,8.73705579,143.07,143.03,6.9914]
[1728368264855,6.9896,143.07,143.03,6.9914]
[1728368266463,1.7475319,143.08,143.04,1.3980239]
[1728368266665,8.7366319,143.08,143.04,8.3890239]
[1728368266854,8.7366319,143.08,143.04,6.991]
[1728368267384,8.7366319,143.08,143.03,6.9914]
[1728368267745,1.7475319,143.08,143.02,26.9919]
[1728368268051,1.7475319,143.08,143.01,17.4806]
[1728368268052,22.719,143.05,143.01,17.4806]
[1728368268251,1.74783241,143.04,143.01,17.4806]
[1728368269240,22.719,143.05,143.01,17.4806]
[1728368269972,1.74783026,143.04,143.01,17.4806]
[1728368270193,22.719,143.05,143.01,18.87887437]
[1728368270342,15.7284,143.05,143.01,25.87117437]
[1728368270545,15.7284,143.05,143.01,24.4729]
[1728368274563,24.46680846,143.05,143.01,17.4806]
[1728368275092,6.9911,143.04,143.01,17.4806]
[1728368275319,8.73898563,143.04,143.01,17.4806]
[1728368275473,8.73898563,143.04,142.99,20.0]
[1728368275670,8.73898563,143.04,143.0,1.39837113]
[1728368275967,8.73898563,143.04,143.0,8.39127113]
[1728368276163,8.73898563,143.04,143.0,6.9929]
[1728368276763,8.73898563,143.04,143.0,8.39126927]
[1728368277271,8.73898563,143.04,143.0,6.9929]
[1728368280997,22.7189,143.05,143.01,6.9924]
[1728368281183,22.7189,143.05,143.01,8.39076723]
[1728368281685,22.7189,143.05,143.03,6.9914]
[1728368281686,15.7284,143.05,143.03,6.9914]
[1728368281871,15.7284,143.05,143.03,8.38956066]
[1728368282073,15.7284,143.05,143.03,1.39816066]
[1728368282272,15.7284,143.05,143.02,24.4715]
[1728368283174,15.7284,143.05,143.03,1.39816045]
[1728368283697,15.7284,143.05,143.04,6.991]
[1728368284000,15.7284,143.05,143.03,8.38966045]
[1728368284183,15.7284,143.05,142.99,37.4828]
[1728368284414,8.73896509,143.04,143.0,6.9926]
[1728368285475,15.7284,143.05,143.01,1.39834411]
[1728368285683,15.7284,143.05,143.02,6.9919]
[1728368285881,15.7284,143.05,143.01,25.87144411]
[1728368286086,22.719,143.05,143.01,24.4731]
[1728368286287,8.73897513,143.04,143.01,17.4808]
[1728368286585,8.73915287,143.04,143.01,17.4808]
[1728368287213,8.73915287,143.04,143.0,6.9928]
[1728368288088,8.73915287,143.04,143.0,8.39116372]
[1728368288408,8.73915287,143.04,143.0,6.9928]
[1728368288610,6.9918,143.03,142.99,26.9934]
[1728368288806,8.73915287,143.04,142.99,21.39848335]
[1728368289106,8.73929469,143.04,143.0,6.9929]
[1728368289291,6.9912,143.04,143.01,1.3983511]
[1728368289490,6.9912,143.04,143.0,6.9929]
[1728368290598,1.74789233,143.03,142.99,20.0]
[1728368290904,6.992,143.02,142.99,20.0]
[1728368291894,8.7406759,143.01,142.98,17.4841]
[1728368292097,6.9925,143.01,142.95,17.4876]
[1728368292317,6.9925,143.01,142.96,6.9945]
[1728368292488,6.2092,143.03,142.96,6.9945]
[1728368292489,6.993,143.0,142.96,6.9945]
[1728368292888,6.9926,143.01,142.96,6.9945]
[1728368293390,8.74073209,143.02,142.98,6.9935]
[1728368293584,8.74073209,143.02,142.97,17.4856]
[1728368293585,7.95739504,143.03,142.99,1.39855603]
[1728368293799,6.9911,143.04,143.0,6.9926]
[1728368294121,17.47643444,143.05,143.01,6.9924]
[1728368294309,17.47643444,143.05,142.99,17.4829]
[1728368294704,6.9916,143.03,142.99,17.4829]
[1728368294905,6.9916,143.03,142.99,24.476]
[1728368297023,8.73910996,143.04,143.0,1.39846609]
[1728368297223,6.9911,143.04,143.0,6.9927]
[1728368298526,8.73961383,143.03,142.99,24.4763]
[1728368299340,6.9917,143.03,142.99,24.4763]
[1728368299627,6.9911,143.04,143.0,6.9929]
[1728368301618,17.47634595,143.05,143.01,1.39833004]
[1728368301927,24.46684595,143.05,143.01,8.39073004]
[1728368302131,15.7284,143.05,143.01,8.39073004]
[1728368302438,15.7284,143.05,143.02,6.9918]
[1728368302835,15.7284,143.05,143.03,8.38947337]
[1728368303838,6.9897,143.07,143.02,8.39002429]
[1728368304543,6.9901,143.06,143.02,6.9919]
[1728368304711,6.9896,143.07,143.03,6.9911]
[1728368305311,8.73760417,143.06,143.02,6.9919]
[1728368305634,6.99,143.06,143.02,6.9919]
[1728368306731,1.74766726,143.05,142.99,6.0326]
[1728368306940,6.9917,143.03,142.98,17.484]
[1728368307145,6.9917,143.03,142.99,6.9933]
[1728368307835,6.9917,143.03,142.98,24.4776]
[1728368308207,22.3138,143.03,142.99,1.39845508]
[1728368309549,22.3138,143.03,142.98,24.4776]
[1728368309858,6.9922,143.02,142.98,24.4776]
[1728368312354,15.3221,143.03,142.98,24.4776]
[1728368312559,22.3138,143.03,142.98,24.4776]
[1728368313161,15.3221,143.03,143.01,6.9922]
[1728368313348,15.3221,143.03,143.01,8.39048113]
[1728368314046,6.4772,143.09,143.01,8.39048113]
[1728368314047,25.1059521,143.07,143.01,1.39828113]
[1728368314254,25.1059521,143.07,143.01,21.39828113]
[1728368314960,23.3581,143.07,143.03,6.9914]
[1728368315335,23.3581,143.07,143.02,8.38993096]
[1728368315758,23.3581,143.07,143.03,6.9914]
[1728368316282,6.9897,143.07,143.03,6.9914]
[1728368316562,6.9887,143.09,143.05,6.9904]
[1728368317547,6.9887,143.09,143.05,8.38829655]
[1728368317940,6.9887,143.09,143.05,6.9904]
[1728368318966,23.4239,143.1,143.06,8.38783837]
[1728368319168,16.4357,143.1,143.07,6.9895]
[1728368319848,16.4357,143.1,143.08,8.38675896]
[1728368320171,7.3006517,143.13,143.1,6.988]
[1728368320349,22.7039,143.14,143.1,8.38543677]
[1728368320547,15.7177,143.14,143.1,1.39743677]
[1728368320783,15.7177,143.14,143.11,6.9872]
[1728368320975,15.7177,143.14,143.1,24.4572]
[1728368321172,15.7177,143.14,143.09,6.9885]
[1728368321343,6.9872,143.12,143.07,17.4732]
[1728368321545,6.9872,143.12,143.07,24.4623]
[1728368321745,6.9872,143.12,143.07,17.4732]
[1728368322150,1.74682719,143.12,143.04,17.4776]
[1728368322375,6.9894,143.08,143.04,17.4776]
[1728368322750,6.9894,143.08,143.04,24.4686]
[1728368323655,6.9894,143.08,143.04,17.4776]
[1728368324459,6.9894,143.08,143.05,1.39792395]
[1728368324978,6.9894,143.08,143.04,17.4776]
[1728368326163,6.9896,143.07,143.01,23.9553]
[1728368326470,6.9901,143.06,143.02,26.9919]
[1728368327254,1.74760424,143.05,142.98,17.4849]
[1728368327495,1.74780702,143.04,142.98,17.4849]
[1728368327649,6.9926,143.01,142.97,6.9941]
[1728368327855,6.9931,143.0,142.96,6.9948]
[1728368328580,1.74832024,142.99,142.92,17.4917]
[1728368328752,21.74853902,143.02,142.93,6.9964]
[1728368329074,6.9941,142.98,142.93,6.9964]
[1728368329475,6.9945,142.97,142.93,6.9964]
[1728368329665,1.74861671,143.01,142.93,6.9964]
[1728368329853,6.994,142.98,142.94,6.9958]
[1728368330054,6.9935,142.99,142.94,6.9958]
[1728368330477,8.74111671,143.01,142.96,6.9949]
[1728368331175,15.7782,143.03,142.96,6.9949]
[1728368331176,1.7483194,143.02,142.99,6.9933]
[1728368331385,15.7782,143.03,142.97,21.39857613]
[1728368331686,15.7782,143.03,142.99,6.9931]
[1728368331887,15.7782,143.03,143.0,1.39841995]
[1728368332981,22.7698,143.03,142.98,17.4842]
[1728368333183,6.9924,143.02,142.98,17.4842]
[1728368333375,6.9924,143.02,142.98,24.4781]
[1728368333687,15.7782,143.03,142.99,6.9932]
[1728368334684,15.7782,143.03,143.0,1.3983723]
[1728368335860,15.7782,143.03,143.01,6.9925]
[1728368336092,23.5314,143.06,143.02,8.39023619]
[1728368336890,23.5314,143.06,143.02,1.39823619]
[1728368337071,23.5314,143.06,143.01,6.9924]
[1728368337471,23.5314,143.06,143.01,8.39058042]
[1728368338185,23.5314,143.06,143.01,6.9924]
[1728368338391,23.5314,143.06,143.02,1.39816578]
[1728368339964,23.5314,143.06,143.01,6.9924]